bitfinex/quotes_SOLUSD_20250508
["timestamp","ask_amount","ask_price","bid_price","bid_amount"]
[1746697905120,40.60221328,153.86,153.81,15.54]
[1746697905818,40.60221328,153.86,153.77,150.0262]
[1746697905819,17.8542606,153.83,153.77,150.0262]
[1746697906023,17.8542606,153.81,153.78,18.64964886]
[1746697906642,17.8542606,153.8,153.77,65.58]
[1746697906927,17.8542606,153.8,153.77,15.58]
[1746697907106,17.8542606,153.78,153.72,309.28]
[1746697907309,17.8542606,153.79,153.74,17.8542606]
[1746697907907,22.7597867,153.78,153.74,17.8542606]
[1746697909408,32.50831756,153.81,153.74,17.8542606]
[1746697909603,17.8542606,153.79,153.74,17.8542606]
[1746697910537,17.8542606,153.76,153.72,15.58]
[1746697911415,22.76422764,153.75,153.72,15.58]
[1746697911716,40.61848824,153.75,153.7,17.8542606]
[1746697911923,17.8542606,153.74,153.69,100.6542606]
[1746697912305,17.8542606,153.74,153.7,17.8542606]
[1746697912827,17.8542606,153.74,153.69,82.8]
[1746697912828,40.62144981,153.73,153.68,84.22964886]
[1746697913019,17.8542606,153.72,153.68,84.22964886]
[1746697914330,17.8542606,153.72,153.68,102.08390946]
[1746697914514,40.62144981,153.73,153.68,102.08390946]
[1746697917628,6.5049112,153.73,153.72,36.50390946]
[1746697917829,16.25688667,153.79,153.73,68.64964886]
[1746697918136,16.25688667,153.79,153.76,17.8542606]
[1746697918517,16.25688667,153.79,153.75,17.8542606]
[1746697918716,34.11114727,153.79,153.75,17.8542606]
[1746697918918,40.61352063,153.79,153.75,17.8542606]
[1746697919140,40.61352063,153.79,153.74,17.8542606]
[1746697919323,24.35663396,153.79,153.74,17.8542606]
[1746697919727,6.50237336,153.79,153.75,17.8542606]
[1746697920436,24.35663396,153.79,153.74,17.8542606]
[1746697920748,24.35663396,153.79,153.73,68.64964886]
[1746697920932,24.35663396,153.79,153.74,17.8542606]
[1746697921331,6.50152785,153.81,153.76,17.8542606]
[1746697921539,24.35578845,153.81,153.76,17.8542606]
[1746697922351,24.35527558,153.83,153.78,17.8542606]
[1746697922551,24.35456522,153.84,153.79,17.8542606]
[1746697922717,17.8542606,153.85,153.8,17.8542606]
[1746697923026,17.8542606,153.86,153.81,17.8542606]
[1746697923346,24.35404081,153.86,153.81,17.8542606]
[1746697923717,6.49978021,153.86,153.82,17.8542606]
[1746697923918,6.4990375,153.87,153.83,17.8542606]
[1746697924413,24.35317976,153.88,153.83,17.8542606]
[1746697925019,17.8542606,153.87,153.83,17.8542606]
[1746697925428,6.49891916,153.88,153.84,17.8542606]
[1746697926744,6.49891916,153.88,153.82,75.15069278]
[1746697926930,6.49891916,153.88,153.85,17.8542606]
[1746697927245,24.35317976,153.88,153.84,17.8542606]
[1746697929426,6.49814802,153.89,153.84,17.8542606]
[1746697929623,24.35240862,153.89,153.84,17.8542606]
[1746697930749,6.49814802,153.89,153.84,17.8542606]
[1746697930929,24.35240862,153.89,153.84,17.8542606]
[1746697931129,24.35240862,153.89,153.83,17.8542606]
[1746697932251,6.49814802,153.89,153.83,17.8542606]
[1746697932451,6.49814802,153.89,153.82,68.64964886]
[1746697932749,22.74351808,153.89,153.82,86.50390946]
[1746697933258,22.74351808,153.89,153.84,17.8542606]
[1746697933630,22.74351808,153.89,153.85,17.8542606]
[1746697934241,40.59777868,153.89,153.84,17.8542606]
[1746697934442,40.59777868,153.89,153.83,17.8542606]
[1746697934636,40.59777868,153.89,153.84,17.8542606]
[1746697934838,40.59777868,153.89,153.83,17.8542606]
[1746697935153,6.49899265,153.87,153.83,17.8542606]
[1746697935752,6.49899265,153.87,153.82,75.15072799]
[1746697935928,6.49814802,153.89,153.86,17.8542606]
[1746697936135,17.2151715,153.9,153.87,17.8542606]
[1746697936332,17.2151715,153.9,153.88,17.8542606]
[1746697937446,17.2151715,153.9,153.86,18.64964886]
[1746697937748,10.71731309,153.9,153.89,17.8542606]
[1746697937927,10.71731309,153.9,153.89,36.50390946]
[1746697938132,0.8953083,153.92,153.89,36.50390946]
[1746697938351,0.8953083,153.92,153.91,17.8542606]
[1746697939439,7.39218979,153.92,153.88,148.36]
[1746697939643,25.24645039,153.92,153.88,98.36]
[1746697939946,17.8542606,153.89,153.84,102.06390946]
[1746697940257,23.63439353,153.92,153.84,55.38866853]
[1746697940258,17.8542606,153.88,153.84,55.38866853]
[1746697940433,22.68111723,153.88,153.84,55.38866853]
[1746697940635,22.68111723,153.88,153.84,15.56]
[1746697940844,17.8542606,153.87,153.84,15.56]
[1746697941046,4.82685663,153.86,153.83,17.8542606]
[1746697941246,6.4998375,153.85,153.83,17.8542606]
[1746697941849,4.82685663,153.84,153.82,67.8542606]
[1746697942366,11.32737171,153.84,153.82,67.8542606]
[1746697942547,11.32737171,153.84,153.82,50.0]
[1746697942747,11.32737171,153.84,153.82,67.8542606]
[1746697942966,6.50051508,153.84,153.82,67.8542606]
[1746697943260,24.35477568,153.84,153.8,15.56]
[1746697943560,17.8542606,153.83,153.8,15.56]
[1746697945052,16.24957492,153.86,153.81,18.64964886]
[1746697945260,6.4998375,153.85,153.81,36.50390946]
[1746697945949,4.82849815,153.84,153.82,17.8542606]
[1746697946346,4.82849815,153.84,153.83,93.8542606]
[1746697946670,4.82849815,153.84,153.83,68.64964886]
[1746697946873,4.82849815,153.84,153.8,15.56]
[1746697947037,24.35494317,153.83,153.8,15.56]
[1746697947233,24.35494317,153.83,153.78,1.6025]
[1746697947451,24.35494317,153.83,153.78,38.10640946]
[1746697947658,17.8542606,153.82,153.78,18.64964886]
[1746697947858,40.60664959,153.83,153.79,17.8542606]
[1746697948287,4.82911814,153.82,153.79,17.8542606]
[1746697948972,4.82911814,153.82,153.78,36.50390946]
[1746697949283,6.50152785,153.81,153.78,36.50390946]
[1746697949484,6.50152785,153.81,153.78,21.97418548]
[1746697951189,17.8542606,153.82,153.78,21.97418548]
[1746697951359,22.74647429,153.87,153.79,68.64964886]
[1746697951690,17.8542606,153.85,153.8,17.8542606]
[1746697952282,4.82884152,153.84,153.8,17.8542606]
[1746697952470,6.50068257,153.83,153.8,17.8542606]
[1746697953190,24.35494317,153.83,153.79,68.64964886]
[1746697953572,6.50068257,153.83,153.79,18.64964886]
[1746697953774,24.35494317,153.83,153.79,18.64964886]
[1746697954278,6.50068257,153.83,153.79,86.50390946]
[1746697954875,6.50068257,153.83,153.8,17.8542606]
[1746697956092,6.50035045,153.84,153.8,43.8542606]
[1746697958396,4.83334989,153.83,153.82,36.50390946]
[1746697959173,4.83334989,153.83,153.82,18.64964886]
[1746697959381,6.49995962,153.85,153.82,18.64964886]
[1746697960497,4.83696374,153.84,153.82,18.64964886]
[1746697960997,11.33726347,153.84,153.82,18.64964886]
[1746697961801,4.83696374,153.83,153.82,18.64964886]
[1746697962485,4.83696374,153.83,153.81,50.0]
[1746697963091,4.83696374,153.82,153.81,68.64964886]
[1746697964898,4.83696374,153.82,153.81,86.50390946]
[1746697965494,4.83696374,153.82,153.81,68.64964886]
[1746697966386,4.83696374,153.82,153.81,86.50390946]
[1746697969592,4.83696374,153.82,153.81,93.00543731]
[1746697969785,4.83696374,153.82,153.81,86.31044579]
[1746697969992,4.83696374,153.82,153.81,169.11044579]
[1746697970183,4.83696374,153.82,153.81,180.26971487]
[1746697970906,4.83696374,153.82,153.81,169.11044579]
[1746697971486,4.83696374,153.82,153.81,183.95117671]
[1746697971706,4.83696374,153.82,153.81,188.60891794]
[1746697972783,4.83696374,153.82,153.79,28.59221312]
[1746697972784,11.33806892,153.82,153.79,15.52]
[1746697973739,4.83696374,153.81,153.79,15.52]
[1746697973916,4.83696374,153.81,153.79,33.38551188]
[1746697974622,6.5008737,153.83,153.8,18.64964886]
[1746697975305,24.3659334,153.84,153.8,18.64964886]
[1746697975507,4.86034274,153.82,153.8,18.64964886]
[1746697976814,4.86034274,153.81,153.8,36.51516074]
[1746697977206,4.86034274,153.81,153.8,43.01711132]
[1746697977404,4.86034274,153.81,153.8,69.01711132]
[1746697977791,6.49968628,153.86,153.82,18.64964886]
[1746697978091,6.49918828,153.87,153.83,17.86551188]
[1746697978910,6.49918828,153.87,153.82,18.64964886]
[1746697979114,6.49918828,153.87,153.83,17.86551188]
[1746697979410,4.8594587,153.86,153.83,43.86551188]
[1746697979889,4.8594587,153.86,153.84,17.86551188]
[1746697980289,4.8594587,153.86,153.83,43.86551188]
[1746697980912,4.8594587,153.85,153.83,43.86551188]
[1746697981325,11.35935844,153.85,153.81,82.8]
[1746697981612,29.22487032,153.85,153.81,108.8]
[1746697981814,4.8594587,153.84,153.81,108.8]
[1746697982818,4.8594587,153.83,153.81,26.0]
[1746697983194,4.8594587,153.83,153.81,43.86551188]
[1746697983393,11.36023488,153.83,153.81,43.86551188]
[1746697983817,4.8594587,153.82,153.81,43.86551188]
[1746697988214,4.8594587,153.82,153.81,62.51516074]
[1746697989238,11.36056388,153.82,153.78,86.12453662]
[1746697989427,11.36056388,153.82,153.79,17.86551188]
[1746697989725,11.36124786,153.81,153.79,43.86551188]
[1746697990309,4.8594587,153.8,153.78,86.12453662]
[1746697990511,4.8594587,153.8,153.79,17.86551188]
[1746697991329,11.36157513,153.8,153.78,103.9900485]
[1746697992640,27.61645159,153.8,153.75,17.86551188]
[1746697993138,4.8594587,153.79,153.75,17.86551188]
[1746697993328,6.5027962,153.78,153.75,17.86551188]
[1746697993838,6.5027962,153.78,153.75,21.1020335]
[1746697994141,6.5027962,153.78,153.76,17.86551188]
[1746697994529,6.5027962,153.78,153.77,17.86551188]
[1746697995448,11.36520848,153.78,153.77,17.86551188]
[1746697995747,11.36520848,153.78,153.77,11.1690604]
[1746697996548,4.86241228,153.78,153.77,11.1690604]
[1746697997448,11.36520848,153.78,153.77,11.1690604]
[1746697998636,11.36520848,153.78,153.75,86.04473093]
[1746697998837,11.36520848,153.78,153.77,11.1690604]
[1746697999036,11.36520848,153.78,153.76,11.1690604]
[1746697999915,4.86241228,153.77,153.76,11.1690604]
[1746698002120,4.86241228,153.77,153.76,37.1690604]
[1746698015335,4.86241228,153.77,153.76,62.32235129]
[1746698015656,6.50026001,153.84,153.79,26.0]
[1746698015846,6.50026001,153.84,153.83,11.1690604]
[1746698017451,6.50026001,153.84,153.81,26.0]
[1746698017656,6.4998375,153.85,153.83,11.1690604]
[1746698017854,6.4998375,153.85,153.84,11.1690604]
[1746698020058,6.4998375,153.85,153.83,11.1690604]
[1746698020438,6.4998375,153.85,153.84,11.1690604]
[1746698021356,6.4998375,153.85,153.83,11.1690604]
[1746698021854,6.4998375,153.85,153.82,26.0]
[1746698022056,6.4998375,153.85,153.83,11.1690604]
[1746698022355,22.74943126,153.85,153.82,37.1690604]
[1746698023245,22.74943126,153.85,153.83,11.1690604]
[1746698023447,22.74943126,153.85,153.82,37.1690604]
[1746698023953,22.74943126,153.85,153.82,26.0]
[1746698025433,22.74943126,153.85,153.81,11.1690604]
[1746698025640,33.91849166,153.85,153.79,82.8]
[1746698025840,11.1690604,153.84,153.79,26.0]
[1746698026041,22.75238899,153.83,153.8,11.1690604]
[1746698027251,22.75238899,153.83,153.79,26.0]
[1746698027454,33.92144939,153.83,153.78,11.1690604]
[1746698027963,6.50152785,153.81,153.78,26.0]
[1746698028661,6.50152785,153.81,153.78,37.1690604]
[1746698029168,6.50237336,153.79,153.78,37.1690604]
[1746698030243,11.35846694,153.79,153.78,37.1690604]
[1746698032374,4.85609358,153.79,153.78,11.1690604]
[1746698033278,11.35846694,153.79,153.78,11.1690604]
[1746698035682,4.85609358,153.79,153.78,11.1690604]
[1746698038101,11.35846694,153.79,153.78,11.1690604]
[1746698043736,32.48651809,153.91,153.82,26.0]
[1746698043915,22.74120838,153.91,153.9,11.1690604]
[1746698044309,22.74120838,153.91,153.88,11.1690604]
[1746698044510,22.74120838,153.91,153.85,26.0]
[1746698044725,22.74120838,153.91,153.88,11.1690604]
[1746698047224,22.74120838,153.91,153.9,11.1690604]
[1746698047430,6.49730361,153.91,153.86,20.28824886]
[1746698047616,6.49730361,153.91,153.9,11.1690604]
[1746698047821,6.49730361,153.91,153.86,1.6386]
[1746698048021,22.74056265,153.91,153.89,11.1690604]
[1746698048709,22.74056265,153.91,153.9,11.1690604]
[1746698052133,6.49730361,153.91,153.9,11.1690604]
[1746698054513,6.49730361,153.91,153.9,26.0]
[1746698054735,6.49730361,153.91,153.9,37.1690604]
[1746698056414,11.3364387,153.91,153.9,37.1690604]
[1746698059947,11.3364387,153.91,153.9,26.0]
[1746698060138,11.3364387,153.91,153.9,37.1690604]
[1746698064251,4.83913509,153.91,153.9,66.98776966]
[1746698064431,4.83913509,153.91,153.9,55.81870926]
[1746698065529,7.39232182,153.92,153.9,55.81870926]
[1746698065726,0.8953083,153.92,153.91,79.81870926]
[1746698065939,0.5,154.0,153.91,79.81870926]
[1746698065940,6.99368064,154.0,153.98,18.64964886]
[1746698066140,0.5,154.0,153.99,29.81870926]
[1746698066442,0.5,154.0,153.99,116.98776966]
[1746698066645,5.32601157,154.0,153.99,118.59766966]
[1746698067331,5.32601157,154.0,153.99,55.81870926]
[1746698067528,11.81951806,154.0,153.99,26.0]
[1746698067852,11.81951806,154.0,153.99,37.1690604]
[1746698068644,5.32601157,154.0,153.99,55.81870926]
[1746698068830,5.32601157,154.0,153.99,44.64964886]
[1746698069028,11.81951806,154.0,153.99,44.64964886]
[1746698069232,5.32601157,154.0,153.99,55.81870926]
[1746698069550,5.32601157,154.0,153.99,116.98776966]
[1746698069747,6.99350649,154.0,153.99,55.81870926]
[1746698070055,6.99350649,154.0,153.99,37.1690604]
[1746698071262,6.99350649,154.0,153.99,40.35676732]
[1746698073252,6.99350649,154.0,153.99,59.00641618]
[1746698074446,0.5,154.0,153.99,59.00641618]
[1746698074755,6.99350649,154.0,153.99,59.00641618]
[1746698075146,6.99350649,154.0,153.99,47.83735578]
[1746698075454,0.5,154.0,153.99,59.00641618]
[1746698075758,0.5,154.0,153.99,141.80641618]
[1746698076146,0.5,154.0,153.99,191.80641618]
[1746698076356,0.5,154.0,153.99,202.97547658]
[1746698077043,0.5,154.0,153.99,218.47547658]
[1746698078363,32.39390994,154.35,154.26,10.0]
[1746698078745,4.79661685,154.34,154.26,60.0]
[1746698078951,4.79661685,154.34,154.28,10.0]
[1746698079264,4.79661685,154.34,154.33,11.1690604]
[1746698079467,1.54850095,154.34,154.33,86.0]
[1746698079643,16.81838899,154.38,154.33,50.0]
[1746698079839,16.81838899,154.38,154.34,17.74252348]
[1746698080037,16.81838899,154.38,154.33,60.0]
[1746698080241,16.81838899,154.38,154.33,10.0]
[1746698080442,16.81838899,154.38,154.34,17.74252348]
[1746698080752,16.81838899,154.38,154.35,17.74252348]
[1746698081065,16.81838899,154.38,154.36,17.74252348]
[1746698081359,16.18856439,154.43,154.37,17.74252348]
[1746698081561,17.74252348,154.4,154.33,10.0]
[1746698081775,17.74252348,154.38,154.33,10.0]
[1746698082068,17.74252348,154.39,154.33,27.74252348]
[1746698082565,17.74252348,154.34,154.27,10.0]
[1746698082766,17.74252348,154.32,154.27,10.0]
[1746698083087,17.74252348,154.33,154.28,10.0]
[1746698083362,17.74252348,154.3,154.24,10.0]
[1746698083547,6.48088139,154.3,154.26,27.74252348]
[1746698083752,6.48088139,154.3,154.26,17.74252348]
[1746698083953,24.22340487,154.3,154.24,77.74252348]
[1746698084156,24.22340487,154.3,154.26,10.0]
[1746698084463,24.22340487,154.3,154.24,27.74252348]
[1746698084663,1.69874605,154.3,154.27,30.02379548]
[1746698084863,17.74252348,154.31,154.27,30.02379548]
[1746698085166,17.74252348,154.32,154.27,78.28084579]
[1746698085466,17.74252348,154.36,154.3,17.74252348]
[1746698085638,5.08625098,154.37,154.31,17.74252348]
[1746698085843,5.08625098,154.37,154.29,10.0]
[1746698085844,17.74252348,154.37,154.29,10.0]
[1746698086059,17.74252348,154.36,154.31,17.74252348]
[1746698086250,17.74252348,154.36,154.3,27.74252348]
[1746698086666,17.74252348,154.36,154.3,17.74252348]
[1746698086970,72.80860277,154.36,154.3,17.74252348]
[1746698087168,72.80860277,154.36,154.3,27.74252348]
[1746698087555,17.74252348,154.34,154.29,10.0]
[1746698087744,17.74252348,154.33,154.28,48.86323694]
[1746698087940,17.74252348,154.33,154.28,38.86323694]
[1746698088139,17.74252348,154.33,154.28,56.60576042]
[1746698088357,17.74252348,154.33,154.28,66.60576042]
[1746698088668,87.45789064,154.36,154.29,17.74252348]
[1746698088855,22.67720616,154.34,154.29,17.74252348]
[1746698089459,72.81573845,154.34,154.28,56.60576042]
[1746698089654,72.81573845,154.34,154.28,66.60576042]
[1746698090175,72.81573845,154.34,154.28,56.60576042]
[1746698090549,72.81573845,154.34,154.28,66.60576042]
[1746698090764,17.74252348,154.32,154.28,38.86323694]
[1746698091050,17.74252348,154.31,154.27,61.12439123]
[1746698092470,17.74252348,154.29,154.27,61.12439123]
[1746698092872,17.74252348,154.28,154.27,61.12439123]
[1746698093082,24.22424502,154.28,154.27,61.12439123]
[1746698094483,105.24576432,154.28,154.18,10.0]
[1746698094671,17.74252348,154.24,154.19,17.74252348]
[1746698094867,17.74252348,154.24,154.18,27.74252348]
[1746698095081,17.74252348,154.23,154.18,27.74252348]
[1746698095289,17.74252348,154.23,154.18,17.74252348]
[1746698095493,17.74252348,154.23,154.18,27.74252348]
[1746698095995,17.74252348,154.22,154.17,10.0]
[1746698096192,17.74252348,154.21,154.17,10.0]
[1746698096582,17.74252348,154.22,154.17,27.74252348]
[1746698097187,22.69632319,154.21,154.18,10.0]
[1746698097497,22.69632319,154.21,154.18,27.74252348]
[1746698097691,22.69632319,154.21,154.19,17.74252348]
[1746698098118,22.69632319,154.21,154.18,27.74252348]
[1746698098283,22.69632319,154.21,154.18,17.74252348]
[1746698098702,22.69632319,154.21,154.18,27.74252348]
[1746698098876,22.69632319,154.21,154.18,17.74252348]
[1746698099077,22.69632319,154.21,154.17,27.74252348]
[1746698099498,22.69632319,154.21,154.17,17.74252348]
[1746698099688,72.86216552,154.21,154.17,10.0]
[1746698100701,72.86216552,154.21,154.16,17.74252348]
[1746698100897,17.74252348,154.2,154.16,17.74252348]
[1746698101109,17.74252348,154.18,154.12,10.0]
[1746698101409,17.74252348,154.17,154.12,10.0]
[1746698101583,22.70368447,154.16,154.12,27.74252348]
[1746698101780,22.70368447,154.16,154.12,17.74252348]
[1746698102306,40.44620795,154.16,154.12,17.74252348]
[1746698102599,72.88004292,154.16,154.12,17.74252348]
[1746698102799,72.88004292,154.16,154.11,100.54252348]
[1746698102988,72.88004292,154.16,154.11,110.54252348]
[1746698103777,22.70368447,154.16,154.15,17.74252348]
[1746698104800,32.43234508,154.17,154.14,10.0]
[1746698104982,32.43234508,154.17,154.15,17.74252348]
[1746698105399,32.43234508,154.17,154.14,17.74252348]
[1746698105631,32.43234508,154.17,154.14,27.74252348]
[1746698106293,22.69926713,154.19,154.16,17.74252348]
[1746698106479,22.69926713,154.19,154.15,17.74252348]
[1746698106678,22.69926713,154.19,154.15,27.74252348]
[1746698106994,72.86931509,154.19,154.14,110.54252348]
[1746698107187,72.86931509,154.19,154.15,10.0]
[1746698107498,55.12679161,154.19,154.15,27.74252348]
[1746698107885,55.12679161,154.19,154.15,17.74252348]
[1746698108087,55.12679161,154.19,154.15,27.74252348]
[1746698108484,55.12679161,154.19,154.15,17.74252348]
[1746698108689,55.12679161,154.19,154.15,27.74252348]
[1746698109504,55.12679161,154.19,154.15,17.74252348]
[1746698109902,17.74252348,154.17,154.14,82.8]
[1746698110082,17.74252348,154.16,154.14,82.8]
[1746698110603,6.48676699,154.16,154.14,82.8]
[1746698111099,22.70368447,154.16,154.14,17.74252348]
[1746698111277,6.48676699,154.16,154.15,46.39217234]
[1746698111473,6.48676699,154.16,154.15,179.19217234]
[1746698111973,6.48676699,154.16,154.15,160.54252348]
[1746698112173,6.48676699,154.16,154.15,142.8]
[1746698112384,6.48676699,154.16,154.15,160.54252348]
[1746698112776,55.11964204,154.21,154.17,10.0]
[1746698112982,55.11964204,154.21,154.18,10.0]
[1746698113182,72.86216552,154.21,154.18,10.0]
[1746698113606,55.11964204,154.21,154.18,10.0]
[1746698114990,55.11964204,154.21,154.17,27.74252348]
[1746698115192,55.11964204,154.21,154.18,10.0]
[1746698117186,17.74252348,154.19,154.14,10.0]
[1746698117403,17.74252348,154.18,154.13,27.74252348]
[1746698117882,87.54296089,154.21,154.16,17.74252348]
[1746698118083,87.54296089,154.21,154.16,27.74252348]
[1746698118385,105.28548437,154.21,154.16,27.74252348]
[1746698118680,105.28548437,154.21,154.15,82.8]
[1746698118681,17.74252348,154.2,154.15,27.74252348]
[1746698118880,17.74252348,154.2,154.16,10.0]
[1746698119087,22.69926713,154.19,154.16,10.0]
[1746698121203,22.69926713,154.19,154.15,27.74252348]
[1746698121407,22.69926713,154.19,154.16,10.0]
[1746698123124,22.69926713,154.19,154.16,27.74252348]
[1746698123283,22.69926713,154.19,154.16,10.0]
[1746698123710,22.69926713,154.19,154.16,92.8]
[1746698123913,22.69926713,154.19,154.17,17.74252348]
[1746698124222,22.69926713,154.19,154.16,82.8]
[1746698124613,22.69926713,154.19,154.16,92.8]
[1746698126522,22.69926713,154.19,154.16,82.8]
[1746698126829,22.69926713,154.19,154.16,10.0]
[1746698127017,16.21376224,154.19,154.16,10.0]
[1746698127222,16.21376224,154.19,154.15,27.74252348]
[1746698127516,16.21376224,154.19,154.16,10.0]
[1746698128322,16.21376224,154.19,154.15,10.0]
[1746698128502,16.21376224,154.19,154.14,10.0]
[1746698128824,33.95628572,154.19,154.15,10.0]
[1746698129318,32.42331885,154.21,154.16,17.74252348]
[1746698129512,280.51435259,154.31,154.16,17.74252348]
[1746698129513,6.48340248,154.24,154.23,10.0]
[1746698129704,6.48340248,154.24,154.23,27.74252348]
[1746698129903,6.48340248,154.24,154.22,10.0]
[1746698130111,6.48340248,154.24,154.23,17.74252348]
[1746698130914,6.48340248,154.24,154.22,10.0]
[1746698131113,6.48340248,154.24,154.22,27.74252348]
[1746698131322,17.74252348,154.26,154.22,27.74252348]
[1746698131721,17.74252348,154.27,154.22,27.74252348]
[1746698133007,50.15283064,154.28,154.23,17.74252348]
[1746698133521,72.83885604,154.28,154.23,17.74252348]
[1746698134025,22.6860254,154.28,154.24,17.74252348]
[1746698134532,22.6860254,154.28,154.23,17.74252348]
[1746698134717,22.6860254,154.28,154.24,27.74252348]
[1746698135432,22.6860254,154.28,154.25,17.74252348]
[1746698135655,6.48130144,154.29,154.27,17.74252348]
[1746698135809,6.48130144,154.29,154.28,10.0]
[1746698136429,6.48130144,154.29,154.28,27.74252348]
[1746698137334,22.67573695,154.35,154.28,27.74252348]
[1746698137532,16.19695497,154.35,154.31,17.74252348]
[1746698138033,16.19695497,154.35,154.31,27.74252348]
[1746698138237,16.19695497,154.35,154.32,17.74252348]
[1746698138414,16.19695497,154.35,154.33,17.74252348]
[1746698138612,6.47836227,154.36,154.34,17.74252348]
[1746698138830,22.6670585,154.41,154.35,96.39217234]
[1746698139014,22.6670585,154.41,154.37,17.74252348]
[1746698139330,22.6670585,154.41,154.35,78.64964886]
[1746698139331,40.40958198,154.41,154.36,17.74252348]
[1746698140034,40.40958198,154.41,154.37,10.0]
[1746698140229,4.81991556,154.4,154.37,10.0]
[1746698140627,22.56243904,154.4,154.37,10.0]
[1746698140840,17.74252348,154.38,154.33,10.0]
[1746698141134,17.74252348,154.34,154.31,10.0]
[1746698141432,87.4297034,154.41,154.29,10.0]
[1746698141433,17.74252348,154.32,154.29,10.0]
[1746698141734,4.81991556,154.37,154.28,10.0]
[1746698141735,17.74252348,154.3,154.28,10.0]
[1746698141946,17.74252348,154.3,154.26,60.0]
[1746698142113,17.74252348,154.28,154.25,10.0]
[1746698142614,22.56243904,154.27,154.23,60.0]
[1746698142816,22.56243904,154.27,154.25,10.0]
[1746698143231,22.56243904,154.27,154.23,10.0]
[1746698143435,4.81991556,154.27,154.25,27.74252348]
[1746698143637,11.30247746,154.26,154.25,27.74252348]
[1746698144431,11.30247746,154.26,154.25,10.0]
[1746698144632,45.25140571,154.26,154.22,10.0]
[1746698144836,4.81991556,154.25,154.23,10.0]
[1746698145034,22.56243904,154.25,154.21,10.0]
[1746698145226,22.56243904,154.25,154.22,10.0]
[1746698145839,27.51182426,154.24,154.21,10.0]
[1746698146044,27.51182426,154.24,154.2,27.74252348]
[1746698146246,27.51182426,154.24,154.22,10.0]
[1746698146837,4.81991556,154.23,154.2,27.74252348]
[1746698147341,4.81991556,154.23,154.22,10.0]
[1746698147929,11.30373842,154.23,154.22,10.0]
[1746698148841,4.81991556,154.23,154.22,27.74252348]
[1746698149337,4.81991556,154.23,154.22,46.39217234]
[1746698150049,4.81991556,154.23,154.22,10.0]
[1746698150231,4.81991556,154.23,154.22,27.74252348]
[1746698150418,6.48356237,154.24,154.23,10.0]
[1746698150618,6.48356237,154.24,154.23,27.74252348]
[1746698150842,6.48214169,154.27,154.23,27.74252348]
[1746698151145,6.48214169,154.27,154.24,27.74252348]
[1746698151337,6.48214169,154.27,154.24,10.0]
[1746698151538,6.48214169,154.27,154.23,27.74252348]
[1746698151747,6.48214169,154.27,154.24,10.0]
[1746698151934,4.81417614,154.26,154.25,10.0]
[1746698152141,4.81417614,154.26,154.25,110.54252348]
[1746698152848,4.81417614,154.26,154.25,179.19217234]
[1746698153152,6.4813898,154.29,154.26,10.0]
[1746698153455,6.4813898,154.29,154.27,17.74252348]
[1746698153650,6.4813898,154.29,154.28,17.74252348]
[1746698153954,6.48004147,154.32,154.29,10.0]
[1746698154123,6.48004147,154.32,154.28,27.74252348]
[1746698154326,4.81241005,154.31,154.29,27.74252348]
[1746698154832,4.81241005,154.31,154.29,10.0]
[1746698155245,4.81241005,154.3,154.29,10.0]
[1746698155555,4.81241005,154.3,154.29,27.74252348]
[1746698156847,11.29329144,154.3,154.28,27.74252348]
[1746698157042,11.29329144,154.3,154.29,10.0]
[1746698157530,29.03581492,154.3,154.28,10.0]
[1746698157728,4.81241005,154.29,154.28,10.0]
[1746698157946,4.81241005,154.29,154.28,27.74252348]
[1746698158347,4.81241005,154.29,154.28,20.70862348]
[1746698158741,6.48088248,154.3,154.28,20.70862348]
[1746698159254,6.48088248,154.3,154.29,2.9661]
[1746698160051,11.29273224,154.3,154.29,2.9661]
[1746698160847,11.29273224,154.3,154.28,20.70862348]
[1746698161731,4.81184976,154.29,154.28,20.70862348]
[1746698162049,4.81184976,154.29,154.28,2.9661]
[1746698162348,4.81184976,154.29,154.26,2.9661]
[1746698162654,4.81184976,154.29,154.28,2.9661]
[1746698163055,11.2931512,154.29,154.28,2.9661]
[1746698164665,11.2931512,154.29,154.27,17.74252348]
[1746698164958,22.68162032,154.31,154.28,2.9661]
[1746698165127,40.4241438,154.31,154.28,2.9661]
[1746698165674,22.68162032,154.31,154.28,2.9661]
[1746698165852,4.81654584,154.3,154.28,2.9661]
[1746698166052,4.81654584,154.3,154.28,20.70862348]
[1746698166753,4.81654584,154.29,154.28,2.9661]
[1746698167164,11.29784728,154.29,154.28,2.9661]
[1746698168035,11.29784728,154.29,154.26,20.70862348]
[1746698168243,11.29784728,154.29,154.28,2.9661]
[1746698169253,11.29784728,154.29,154.27,2.9661]
[1746698169447,11.29784728,154.29,154.28,2.9661]
[1746698170759,11.29784728,154.29,154.25,2.9661]